[Event "*** MasterClass Titled Tuesday Blitz"]
[Site "Chess.com"]
[Date "2017.08.01"]
[Round "8"]
[White "matej2221"]
[Black "AndrewMcStone"]
[Result "1-0"]
[WhiteElo "2260"]
[BlackElo "2067"]
[TimeControl "180+2"]
[EndTime "14:49:05 PDT"]
[Termination "matej2221 won by resignation"]

1. e4 {[%clk 0:03:01.9]} 1... Nc6 {[%clk 0:02:59.5]} 2. Nf3 {[%clk 0:03:01.8]}
2... d6 {[%clk 0:02:59.9]} 3. d4 {[%clk 0:03:01]} 3... Nf6 {[%clk 0:03:01.2]} 4.
Nc3 {[%clk 0:03:01.2]} 4... g6 {[%clk 0:03:02.6]} 5. d5 {[%clk 0:03:00.5]} 5...
Nb8 {[%clk 0:03:01.8]} 6. Be3 {[%clk 0:02:59]} 6... Bg7 {[%clk 0:02:59.5]} 7.
Be2 {[%clk 0:02:54.8]} 7... O-O {[%clk 0:02:59.3]} 8. O-O {[%clk 0:02:53.1]}
8... e5 {[%clk 0:03:00]} 9. dxe6 {[%clk 0:02:48.1]} 9... Bxe6 {[%clk 0:03:00.1]}
10. Nd4 {[%clk 0:02:23.8]} 10... Bd7 {[%clk 0:02:59.6]} 11. f3 {[%clk 0:02:20]}
11... Re8 {[%clk 0:02:47.8]} 12. Qd2 {[%clk 0:02:18]} 12... Nc6 {[%clk
0:02:18.7]} 13. Nb3 {[%clk 0:02:10.4]} 13... a5 {[%clk 0:02:13.6]} 14. Bh6
{[%clk 0:01:53.5]} 14... a4 {[%clk 0:02:10.1]} 15. Nc1 {[%clk 0:01:53.4]} 15...
Bh8 {[%clk 0:01:55.4]} 16. a3 {[%clk 0:01:36.7]} 16... Qe7 {[%clk 0:01:49.9]}
17. Nd3 {[%clk 0:01:32.3]} 17... Nd4 {[%clk 0:01:37.8]} 18. Nb4 {[%clk
0:01:16.4]} 18... Nxe2+ {[%clk 0:01:26.1]} 19. Qxe2 {[%clk 0:01:17.5]} 19... Be6
{[%clk 0:01:09]} 20. Rad1 {[%clk 0:01:16.6]} 20... Ra5 {[%clk 0:01:03.6]} 21.
Qd3 {[%clk 0:01:09.4]} 21... Rh5 {[%clk 0:00:55]} 22. Bf4 {[%clk 0:01:07.6]}
22... Nd7 {[%clk 0:00:11.5]} 23. Ncd5 {[%clk 0:01:04.9]} 23... Qd8 {[%clk
0:00:11.6]} 24. c3 {[%clk 0:00:54.4]} 24... Ne5 {[%clk 0:00:10.7]} 25. Qe2
{[%clk 0:00:51.9]} 25... c6 {[%clk 0:00:09]} 26. Ne3 {[%clk 0:00:52.6]} 26...
Qf6 {[%clk 0:00:09.1]} 27. Bg3 {[%clk 0:00:52.3]} 27... Qg7 {[%clk 0:00:08]} 28.
f4 {[%clk 0:00:51.7]} 28... Nd7 {[%clk 0:00:07.5]} 29. f5 {[%clk 0:00:52.6]}
29... gxf5 {[%clk 0:00:08.2]} 30. Qxh5 {[%clk 0:00:53]} 30... fxe4 {[%clk
0:00:05.8]} 31. Rxd6 {[%clk 0:00:51.1]} 1-0

[Event "*** MasterClass Titled Tuesday Blitz"]
[Site "Chess.com"]
[Date "2017.08.01"]
[Round "8"]
[White "Tash_Boy"]
[Black "stepanosinovsky"]
[Result "1-0"]
[WhiteElo "2451"]
[BlackElo "2281"]
[TimeControl "180+2"]
[EndTime "14:49:30 PDT"]
[Termination "Tash_Boy won on time"]

1. e4 {[%clk 0:03:01.9]} 1... e5 {[%clk 0:03:00.5]} 2. Nf3 {[%clk 0:02:58.7]}
2... Nc6 {[%clk 0:03:01.8]} 3. Bc4 {[%clk 0:03:00.3]} 3... Nf6 {[%clk
0:03:01.9]} 4. d3 {[%clk 0:03:00.7]} 4... Be7 {[%clk 0:03:01.9]} 5. O-O {[%clk
0:03:00.6]} 5... d5 {[%clk 0:03:01]} 6. exd5 {[%clk 0:03:01.1]} 6... Nxd5 {[%clk
0:03:02.9]} 7. Re1 {[%clk 0:03:01.2]} 7... Bg4 {[%clk 0:03:04.3]} 8. c3 {[%clk
0:02:59.6]} 8... O-O {[%clk 0:03:01.5]} 9. Nbd2 {[%clk 0:03:01.5]} 9... Kh8
{[%clk 0:02:34.2]} 10. Bb5 {[%clk 0:02:59.9]} 10... Bd6 {[%clk 0:02:06.1]} 11.
h3 {[%clk 0:02:56.3]} 11... Bh5 {[%clk 0:02:05.7]} 12. Ne4 {[%clk 0:02:54.1]}
12... f5 {[%clk 0:02:02.3]} 13. Ng3 {[%clk 0:02:55]} 13... Bxf3 {[%clk
0:01:44.4]} 14. Qxf3 {[%clk 0:02:54.9]} 14... Nce7 {[%clk 0:01:45.6]} 15. Bg5
{[%clk 0:02:50.8]} 15... c6 {[%clk 0:01:43.3]} 16. Bc4 {[%clk 0:02:50.5]} 16...
Qd7 {[%clk 0:01:09.5]} 17. Bxe7 {[%clk 0:02:50.3]} 17... Nxe7 {[%clk 0:01:09]}
18. Rad1 {[%clk 0:02:51.9]} 18... Rae8 {[%clk 0:01:03.4]} 19. a4 {[%clk
0:02:48.5]} 19... Ng6 {[%clk 0:01:03.8]} 20. b4 {[%clk 0:02:37.1]} 20... Nf4
{[%clk 0:00:55.5]} 21. b5 {[%clk 0:02:29.2]} 21... c5 {[%clk 0:00:42.5]} 22. a5
{[%clk 0:02:24.7]} 22... Qd8 {[%clk 0:00:42]} 23. a6 {[%clk 0:02:18.2]} 23... b6
{[%clk 0:00:40.1]} 24. Nh5 {[%clk 0:02:17.7]} 24... Nxh5 {[%clk 0:00:30.9]} 25.
Qxh5 {[%clk 0:02:17.9]} 25... Qf6 {[%clk 0:00:28.9]} 26. Bd5 {[%clk 0:02:15.2]}
26... Bb8 {[%clk 0:00:27.6]} 27. c4 {[%clk 0:02:15.5]} 27... g6 {[%clk 0:00:26]}
28. Qf3 {[%clk 0:02:14.3]} 28... Re7 {[%clk 0:00:25.4]} 29. Re2 {[%clk
0:02:14.9]} 29... Rfe8 {[%clk 0:00:20.9]} 30. Rde1 {[%clk 0:02:16.4]} 30... Bd6
{[%clk 0:00:20.3]} 31. Bc6 {[%clk 0:02:17.9]} 31... Rf8 {[%clk 0:00:21.2]} 32.
Qd5 {[%clk 0:02:18.7]} 32... Bb8 {[%clk 0:00:21.4]} 33. f4 {[%clk 0:02:16.2]}
33... e4 {[%clk 0:00:10.5]} 34. dxe4 {[%clk 0:02:16.2]} 34... fxe4 {[%clk
0:00:12.4]} 35. Rxe4 {[%clk 0:02:16.6]} 35... Rxe4 {[%clk 0:00:11.3]} 36. Rxe4
{[%clk 0:02:17]} 36... Bxf4 {[%clk 0:00:11.4]} 37. Qe6 {[%clk 0:02:15.2]} 37...
Qa1+ {[%clk 0:00:11.6]} 38. Re1 {[%clk 0:02:13.7]} 38... Qc3 {[%clk 0:00:11.8]}
39. Qe7 {[%clk 0:02:11.3]} 39... Bh6 {[%clk 0:00:09.8]} 40. Qe5+ {[%clk
0:02:08.9]} 40... Qxe5 {[%clk 0:00:08.3]} 41. Rxe5 {[%clk 0:02:10.8]} 41... Rf7
{[%clk 0:00:08.8]} 42. Bd5 {[%clk 0:02:08.5]} 42... Rc7 {[%clk 0:00:07.8]} 43.
g4 {[%clk 0:02:06.6]} 43... Bf4 {[%clk 0:00:06.8]} 44. Re8+ {[%clk 0:02:04.6]}
44... Kg7 {[%clk 0:00:07.8]} 45. Kg2 {[%clk 0:02:04.9]} 45... Bd6 {[%clk
0:00:05.6]} 46. g5 {[%clk 0:02:04.5]} 46... h6 {[%clk 0:00:04.1]} 47. h4 {[%clk
0:02:04.2]} 47... hxg5 {[%clk 0:00:04.9]} 48. hxg5 {[%clk 0:02:05.2]} 48... Bf4
{[%clk 0:00:06.1]} 49. Rg8+ {[%clk 0:02:02.9]} 49... Kh7 {[%clk 0:00:07.2]} 50.
Ra8 {[%clk 0:02:04.8]} 50... Bxg5 {[%clk 0:00:02.4]} 51. Bb7 {[%clk 0:02:06.3]}
1-0

[Event "*** MasterClass Titled Tuesday Blitz"]
[Site "Chess.com"]
[Date "2017.08.01"]
[Round "8"]
[White "Caisachess"]
[Black "Blitzking4444"]
[Result "0-1"]
[WhiteElo "2237"]
[BlackElo "2150"]
[TimeControl "180+2"]
[EndTime "14:49:41 PDT"]
[Termination "Blitzking4444 won by resignation"]

1. e4 {[%clk 0:02:59.3]} 1... e6 {[%clk 0:03:00]} 2. d4 {[%clk 0:02:59.5]} 2...
d5 {[%clk 0:03:01]} 3. Bd3 {[%clk 0:03:00.9]} 3... c5 {[%clk 0:02:59.2]} 4. exd5
{[%clk 0:03:01.6]} 4... exd5 {[%clk 0:02:59.2]} 5. Nf3 {[%clk 0:03:02.7]} 5...
Nc6 {[%clk 0:02:57.2]} 6. O-O {[%clk 0:03:01.3]} 6... Nf6 {[%clk 0:02:24.5]} 7.
Re1+ {[%clk 0:02:59.8]} 7... Be6 {[%clk 0:02:25.5]} 8. Ng5 {[%clk 0:02:57.8]}
8... Nxd4 {[%clk 0:02:17.3]} 9. c3 {[%clk 0:02:58.3]} 9... h6 {[%clk 0:02:09.7]}
10. Nxf7 {[%clk 0:02:42]} 10... Kxf7 {[%clk 0:02:09.4]} 11. cxd4 {[%clk
0:02:42.9]} 11... cxd4 {[%clk 0:02:03.8]} 12. Nd2 {[%clk 0:02:37.5]} 12... Bc5
{[%clk 0:01:45.5]} 13. Nf3 {[%clk 0:02:37.6]} 13... Re8 {[%clk 0:01:40.9]} 14.
b4 {[%clk 0:02:28.5]} 14... Bxb4 {[%clk 0:01:32.2]} 15. Bd2 {[%clk 0:02:22.8]}
15... Bc5 {[%clk 0:01:14.3]} 16. Qc2 {[%clk 0:02:23.2]} 16... Qd6 {[%clk
0:00:55]} 17. Bg6+ {[%clk 0:02:23.2]} 17... Kg8 {[%clk 0:00:54]} 18. Bxe8 {[%clk
0:02:24]} 18... Rxe8 {[%clk 0:00:54.5]} 19. Rac1 {[%clk 0:02:20.6]} 19... b6
{[%clk 0:00:53.9]} 20. Qg6 {[%clk 0:02:20.3]} 20... Bf7 {[%clk 0:00:31.3]} 21.
Rxe8+ {[%clk 0:02:20]} 21... Bxe8 {[%clk 0:00:33.2]} 22. Qf5 {[%clk 0:02:15.7]}
22... Ne4 {[%clk 0:00:31.1]} 23. Bf4 {[%clk 0:02:11.9]} 23... Qd7 {[%clk
0:00:16.8]} 24. Qxd7 {[%clk 0:02:05.8]} 24... Bxd7 {[%clk 0:00:18.7]} 25. Ne5
{[%clk 0:02:07.3]} 25... Bb5 {[%clk 0:00:19.8]} 26. Rd1 {[%clk 0:01:53.9]} 26...
Nc3 {[%clk 0:00:19.9]} 27. Rd2 {[%clk 0:01:52.4]} 27... Ne2+ {[%clk 0:00:20.1]}
28. Rxe2 {[%clk 0:01:48.6]} 28... Bxe2 {[%clk 0:00:22]} 29. Bd2 {[%clk
0:01:45.7]} 29... Bc4 {[%clk 0:00:17.2]} 30. a4 {[%clk 0:01:46]} 30... a5 {[%clk
0:00:15.4]} 31. Nd7 {[%clk 0:01:28.3]} 31... Kf7 {[%clk 0:00:04.7]} 32. Bxa5
{[%clk 0:01:22.4]} 32... Bb3 {[%clk 0:00:03.3]} 33. Bxb6 {[%clk 0:01:18.7]}
33... Bxb6 {[%clk 0:00:04]} 34. Nxb6 {[%clk 0:01:19.6]} 34... d3 {[%clk
0:00:05.5]} 35. Nxd5 {[%clk 0:01:01.6]} 35... d2 {[%clk 0:00:04.7]} 36. Nc3
{[%clk 0:01:00.9]} 36... Bxa4 {[%clk 0:00:05.1]} 37. f3 {[%clk 0:00:57.1]} 37...
d1=Q+ {[%clk 0:00:04.8]} 38. Nxd1 {[%clk 0:00:58.6]} 38... Bxd1 {[%clk
0:00:06.4]} 39. Kf2 {[%clk 0:01:00.4]} 39... Kf6 {[%clk 0:00:07.5]} 40. Ke1
{[%clk 0:01:01.5]} 40... Ba4 {[%clk 0:00:08.2]} 41. Kf2 {[%clk 0:01:02.5]} 41...
Bc6 {[%clk 0:00:10.1]} 42. Ke3 {[%clk 0:01:03.4]} 42... Kf5 {[%clk 0:00:11.5]}
43. g4+ {[%clk 0:01:03.2]} 43... Kg5 {[%clk 0:00:11.3]} 44. f4+ {[%clk
0:01:00.2]} 44... Kxg4 {[%clk 0:00:12]} 0-1

[Event "*** MasterClass Titled Tuesday Blitz"]
[Site "Chess.com"]
[Date "2017.08.01"]
[Round "8"]
[White "biostatistician"]
[Black "KyronGriffith"]
[Result "1-0"]
[WhiteElo "2452"]
[BlackElo "2336"]
[TimeControl "180+2"]
[EndTime "14:49:43 PDT"]
[Termination "biostatistician won by resignation"]

1. d4 {[%clk 0:02:59.7]} 1... Nf6 {[%clk 0:03:00.9]} 2. Nf3 {[%clk 0:03:01.6]}
2... g6 {[%clk 0:03:02.2]} 3. c4 {[%clk 0:03:03.1]} 3... Bg7 {[%clk 0:03:03.6]}
4. Nc3 {[%clk 0:03:05]} 4... O-O {[%clk 0:03:04.8]} 5. e4 {[%clk 0:03:06]} 5...
d6 {[%clk 0:03:06.1]} 6. Be2 {[%clk 0:03:07.9]} 6... e5 {[%clk 0:03:06.5]} 7.
dxe5 {[%clk 0:03:09.8]} 7... dxe5 {[%clk 0:03:05.8]} 8. Qxd8 {[%clk 0:03:11.7]}
8... Rxd8 {[%clk 0:03:07.4]} 9. Bg5 {[%clk 0:03:13.4]} 9... Re8 {[%clk 0:03:06]}
10. Nd5 {[%clk 0:03:14.6]} 10... Nxd5 {[%clk 0:03:05.4]} 11. cxd5 {[%clk
0:03:16.5]} 11... c6 {[%clk 0:03:05]} 12. Bc4 {[%clk 0:03:17.8]} 12... a5 {[%clk
0:03:06.5]} 13. a4 {[%clk 0:03:04.4]} 13... Na6 {[%clk 0:02:56.7]} 14. O-O-O
{[%clk 0:02:36.8]} 14... Nc5 {[%clk 0:02:48.8]} 15. d6 {[%clk 0:02:24.3]} 15...
Bd7 {[%clk 0:02:43.6]} 16. Rhe1 {[%clk 0:02:19.7]} 16... Nxa4 {[%clk 0:02:32.2]}
17. Be3 {[%clk 0:02:18.2]} 17... b5 {[%clk 0:02:12]} 18. Bb3 {[%clk 0:02:17.9]}
18... Bf6 {[%clk 0:01:38.1]} 19. Kb1 {[%clk 0:02:11.6]} 19... Kg7 {[%clk
0:01:33.5]} 20. Rc1 {[%clk 0:02:06]} 20... Rab8 {[%clk 0:01:31.9]} 21. Ng5
{[%clk 0:01:53.9]} 21... Bxg5 {[%clk 0:01:28.6]} 22. Bxg5 {[%clk 0:01:55.8]}
22... Nb6 {[%clk 0:01:25.9]} 23. Red1 {[%clk 0:01:45.6]} 23... f6 {[%clk
0:01:02.1]} 24. Bd2 {[%clk 0:01:45.1]} 24... a4 {[%clk 0:01:01.6]} 25. Ba2
{[%clk 0:01:45.9]} 25... f5 {[%clk 0:01:03]} 26. f3 {[%clk 0:01:31.8]} 26...
fxe4 {[%clk 0:00:56.9]} 27. fxe4 {[%clk 0:01:33.7]} 27... Rf8 {[%clk 0:00:44.8]}
28. Bg5 {[%clk 0:01:24.7]} 28... Rf2 {[%clk 0:00:35.4]} 29. Rf1 {[%clk
0:01:17.7]} 29... Rbf8 {[%clk 0:00:17.1]} 30. Rxf2 {[%clk 0:01:18.7]} 30... Rxf2
{[%clk 0:00:19]} 31. Be3 {[%clk 0:01:20]} 31... Rxg2 {[%clk 0:00:19.6]} 32. Bxb6
{[%clk 0:01:20.6]} 32... Rxh2 {[%clk 0:00:21.5]} 33. Rf1 {[%clk 0:01:19.5]}
33... Kh6 {[%clk 0:00:18.1]} 34. Rf7 {[%clk 0:01:17.9]} 34... Bg4 {[%clk
0:00:19.5]} 35. d7 {[%clk 0:01:12.1]} 35... Rh1+ {[%clk 0:00:20.1]} 36. Kc2
{[%clk 0:01:12.8]} 36... Bd1+ {[%clk 0:00:22]} 37. Kc3 {[%clk 0:01:13.1]} 37...
c5 {[%clk 0:00:16.5]} 38. d8=Q {[%clk 0:01:10]} 38... b4+ {[%clk 0:00:14.7]} 39.
Kc4 {[%clk 0:01:02.2]} 39... Be2+ {[%clk 0:00:15.5]} 40. Kxc5 {[%clk 0:01:03]}
40... b3 {[%clk 0:00:15.1]} 41. Qe7 {[%clk 0:00:54.5]} 41... Rc1+ {[%clk
0:00:08.6]} 42. Kd6 {[%clk 0:00:47.1]} 42... Rd1+ {[%clk 0:00:08.9]} 43. Kxe5
{[%clk 0:00:48.3]} 1-0

[Event "*** MasterClass Titled Tuesday Blitz"]
[Site "Chess.com"]
[Date "2017.08.01"]
[Round "8"]
[White "AlexanderKing"]
[Black "Sharafiev_Azat"]
[Result "0-1"]
[WhiteElo "2424"]
[BlackElo "2329"]
[TimeControl "180+2"]
[EndTime "14:50:15 PDT"]
[Termination "Sharafiev_Azat won by resignation"]

1. d4 {[%clk 0:03:01.9]} 1... e6 {[%clk 0:03:00.4]} 2. c4 {[%clk 0:03:02]} 2...
b6 {[%clk 0:03:01.8]} 3. Nc3 {[%clk 0:02:59.5]} 3... Bb7 {[%clk 0:03:02.4]} 4.
e4 {[%clk 0:02:48.3]} 4... Bb4 {[%clk 0:03:02.4]} 5. Qc2 {[%clk 0:02:41]} 5...
Qh4 {[%clk 0:02:58.8]} 6. Bd3 {[%clk 0:02:36.5]} 6... f5 {[%clk 0:02:59.5]} 7.
Nf3 {[%clk 0:02:31.4]} 7... Bxc3+ {[%clk 0:02:52.4]} 8. Kf1 {[%clk 0:02:32.6]}
8... Qg4 {[%clk 0:02:48.5]} 9. h3 {[%clk 0:02:33.3]} 9... Qh5 {[%clk 0:02:43.4]}
10. bxc3 {[%clk 0:02:30.7]} 10... fxe4 {[%clk 0:02:41.1]} 11. Bxe4 {[%clk
0:02:32.6]} 11... Bxe4 {[%clk 0:02:41.4]} 12. Qxe4 {[%clk 0:02:34.5]} 12... Nc6
{[%clk 0:02:42.6]} 13. d5 {[%clk 0:02:10.8]} 13... Nf6 {[%clk 0:02:41.5]} 14.
Qf4 {[%clk 0:01:50.6]} 14... exd5 {[%clk 0:02:39.3]} 15. Qxc7 {[%clk 0:01:43.8]}
15... O-O {[%clk 0:02:13]} 16. cxd5 {[%clk 0:01:37.5]} 16... Qxd5 {[%clk
0:02:10]} 17. Ba3 {[%clk 0:01:33.6]} 17... Rfe8 {[%clk 0:02:06.4]} 18. Qd6
{[%clk 0:01:31.9]} 18... Qc4+ {[%clk 0:02:04.1]} 19. Kg1 {[%clk 0:01:31.7]}
19... Qxc3 {[%clk 0:02:03.8]} 20. Rc1 {[%clk 0:01:25.6]} 20... Qa5 {[%clk
0:02:00.3]} 21. Bb2 {[%clk 0:01:12.2]} 21... Re6 {[%clk 0:01:56.1]} 22. Qd1
{[%clk 0:00:57.3]} 22... Qxa2 {[%clk 0:01:54.2]} 23. Bxf6 {[%clk 0:00:57.9]}
23... Rxf6 {[%clk 0:01:52.3]} 24. Qxd7 {[%clk 0:00:52.6]} 24... Rd8 {[%clk
0:01:50.5]} 25. Qc7 {[%clk 0:00:45.2]} 25... Qd5 {[%clk 0:01:28.3]} 26. Kh2
{[%clk 0:00:26]} 26... Qd6+ {[%clk 0:01:25.5]} 27. Qxd6 {[%clk 0:00:27.2]} 27...
Rfxd6 {[%clk 0:01:24.8]} 28. Rc4 {[%clk 0:00:21.4]} 28... Nd4 {[%clk 0:01:20.3]}
29. Ne5 {[%clk 0:00:03.9]} 29... Re6 {[%clk 0:01:13.8]} 30. f4 {[%clk
0:00:03.6]} 30... Ne2 {[%clk 0:01:12.8]} 31. Re1 {[%clk 0:00:04.9]} 31... Nd4
{[%clk 0:00:57.6]} 32. Re4 {[%clk 0:00:02.2]} 32... Nf5 {[%clk 0:00:56.4]} 33.
g4 {[%clk 0:00:03.2]} 33... Nd6 {[%clk 0:00:56.2]} 34. Red4 {[%clk 0:00:02.8]}
34... Ree8 {[%clk 0:00:56.5]} 35. Rc6 {[%clk 0:00:03.5]} 35... Nf7 {[%clk
0:00:55]} 36. Rxd8 {[%clk 0:00:04]} 36... Nxd8 {[%clk 0:00:55.8]} 37. Rc7 {[%clk
0:00:05.4]} 37... a5 {[%clk 0:00:55.8]} 38. Rc8 {[%clk 0:00:04.9]} 38... Kf8
{[%clk 0:00:48.2]} 39. Rb8 {[%clk 0:00:06.1]} 39... Ne6 {[%clk 0:00:44.2]} 40.
Rxb6 {[%clk 0:00:07.1]} 40... Nxf4 {[%clk 0:00:45.3]} 41. Nf3 {[%clk 0:00:03.4]}
41... Ra8 {[%clk 0:00:42.4]} 42. Kg3 {[%clk 0:00:03.4]} 42... Nd5 {[%clk
0:00:42.3]} 43. Rd6 {[%clk 0:00:03.8]} 43... Nf6 {[%clk 0:00:41.8]} 44. Rd2
{[%clk 0:00:03.1]} 44... Ne4+ {[%clk 0:00:42]} 0-1

[Event "*** MasterClass Titled Tuesday Blitz"]
[Site "Chess.com"]
[Date "2017.08.01"]
[Round "8"]
[White "1lec"]
[Black "beastfromweast"]
[Result "1-0"]
[WhiteElo "2067"]
[BlackElo "2274"]
[TimeControl "180+2"]
[EndTime "14:50:18 PDT"]
[Termination "1lec won by resignation"]

1. e4 {[%clk 0:03:02]} 1... c5 {[%clk 0:03:01]} 2. Nf3 {[%clk 0:03:02.8]} 2...
d6 {[%clk 0:03:01.7]} 3. d4 {[%clk 0:03:04.3]} 3... cxd4 {[%clk 0:03:03.6]} 4.
Nxd4 {[%clk 0:03:05.8]} 4... Nf6 {[%clk 0:03:05.1]} 5. Nc3 {[%clk 0:03:07.4]}
5... a6 {[%clk 0:03:06.8]} 6. Be3 {[%clk 0:03:08.6]} 6... e6 {[%clk 0:03:06.6]}
7. f3 {[%clk 0:03:06.6]} 7... Be7 {[%clk 0:03:06.8]} 8. Qd2 {[%clk 0:03:05.7]}
8... b5 {[%clk 0:03:08.1]} 9. a3 {[%clk 0:03:04.2]} 9... Bb7 {[%clk 0:03:07.9]}
10. g4 {[%clk 0:03:05.1]} 10... Nfd7 {[%clk 0:03:08.2]} 11. g5 {[%clk
0:03:03.7]} 11... Nb6 {[%clk 0:03:09.4]} 12. b3 {[%clk 0:02:38.9]} 12... N8d7
{[%clk 0:03:09.3]} 13. h4 {[%clk 0:02:39.4]} 13... Rc8 {[%clk 0:03:07.6]} 14. h5
{[%clk 0:02:37.5]} 14... Qc7 {[%clk 0:03:06.3]} 15. Nde2 {[%clk 0:02:25.4]}
15... Ne5 {[%clk 0:03:06]} 16. Bg2 {[%clk 0:02:12.1]} 16... d5 {[%clk
0:02:58.2]} 17. f4 {[%clk 0:01:39.4]} 17... Ng4 {[%clk 0:02:53.8]} 18. Bd4
{[%clk 0:01:35.6]} 18... Bc5 {[%clk 0:02:28.7]} 19. e5 {[%clk 0:01:14.7]} 19...
Bxd4 {[%clk 0:02:12.4]} 20. Qxd4 {[%clk 0:01:14.7]} 20... Qc5 {[%clk 0:02:06]}
21. Kd2 {[%clk 0:00:54.2]} 21... f6 {[%clk 0:01:50.8]} 22. gxf6 {[%clk
0:00:28.1]} 22... gxf6 {[%clk 0:01:50.9]} 23. exf6 {[%clk 0:00:29.2]} 23... Kf7
{[%clk 0:01:45]} 24. Rh4 {[%clk 0:00:12.4]} 24... Nxf6 {[%clk 0:01:44.9]} 25.
Rf1 {[%clk 0:00:11.4]} 25... Rhg8 {[%clk 0:01:44.4]} 26. Bh1 {[%clk 0:00:09]}
26... Qxd4+ {[%clk 0:01:27.7]} 27. Nxd4 {[%clk 0:00:09.7]} 27... Rg4 {[%clk
0:01:28]} 28. Rxg4 {[%clk 0:00:07.6]} 28... Nxg4 {[%clk 0:01:29.9]} 29. Bf3
{[%clk 0:00:07.6]} 29... Nf6 {[%clk 0:01:29.8]} 30. Bg2 {[%clk 0:00:08.1]} 30...
Rg8 {[%clk 0:01:29.1]} 31. Bh3 {[%clk 0:00:08.8]} 31... Bc8 {[%clk 0:01:27.4]}
32. Nc6 {[%clk 0:00:06.2]} 32... Nxh5 {[%clk 0:01:25]} 33. Ne5+ {[%clk
0:00:06.6]} 33... Ke8 {[%clk 0:01:23.3]} 34. Ne2 {[%clk 0:00:05.9]} 34... Rf8
{[%clk 0:01:22.2]} 35. Bg2 {[%clk 0:00:04.2]} 35... Nd7 {[%clk 0:01:22.2]} 36.
Ke3 {[%clk 0:00:03.6]} 36... Nxf4 {[%clk 0:01:16.6]} 37. Nxf4 {[%clk 0:00:02.2]}
37... Nxe5 {[%clk 0:01:17.2]} 38. Bh3 {[%clk 0:00:02.2]} 38... Ng6 {[%clk
0:01:14.3]} 39. Nxg6 {[%clk 0:00:02]} 39... Rxf1 {[%clk 0:01:14.5]} 40. Bxf1
{[%clk 0:00:02.3]} 40... hxg6 {[%clk 0:01:15.9]} 41. Kd4 {[%clk 0:00:03.5]}
41... Kd7 {[%clk 0:01:15.1]} 42. Ke5 {[%clk 0:00:05.1]} 42... Ke7 {[%clk
0:01:14.4]} 43. Bd3 {[%clk 0:00:06.6]} 43... g5 {[%clk 0:01:14.3]} 44. Be2
{[%clk 0:00:07.8]} 44... Bd7 {[%clk 0:01:12.8]} 45. Bg4 {[%clk 0:00:09.4]} 45...
a5 {[%clk 0:01:06.2]} 46. b4 {[%clk 0:00:10.4]} 46... Kf7 {[%clk 0:01:01.2]} 47.
bxa5 {[%clk 0:00:09.7]} 47... Bc6 {[%clk 0:01:02.3]} 48. c3 {[%clk 0:00:10.6]}
48... Ke7 {[%clk 0:01:01.7]} 49. Bxe6 {[%clk 0:00:10.9]} 49... Bd7 {[%clk
0:00:44.2]} 50. Bxd5 {[%clk 0:00:11.2]} 50... Kd8 {[%clk 0:00:44]} 51. a6 {[%clk
0:00:11.5]} 1-0

[Event "*** MasterClass Titled Tuesday Blitz"]
[Site "Chess.com"]
[Date "2017.08.01"]
[Round "8"]
[White "Cryptochess"]
[Black "lukas_111111"]
[Result "1-0"]
[WhiteElo "2487"]
[BlackElo "2409"]
[TimeControl "180+2"]
[EndTime "14:50:19 PDT"]
[Termination "Cryptochess won by resignation"]

1. e4 {[%clk 0:02:59.8]} 1... c5 {[%clk 0:02:59.5]} 2. Nc3 {[%clk 0:02:59.9]}
2... d6 {[%clk 0:02:59.6]} 3. g3 {[%clk 0:03:01.3]} 3... Nc6 {[%clk 0:02:59.4]}
4. Bg2 {[%clk 0:03:02.8]} 4... g6 {[%clk 0:03:00.9]} 5. d3 {[%clk 0:03:04.1]}
5... Bg7 {[%clk 0:03:02.3]} 6. Be3 {[%clk 0:03:05.8]} 6... Rb8 {[%clk
0:03:01.3]} 7. Qd2 {[%clk 0:03:07]} 7... b5 {[%clk 0:03:00.9]} 8. Nge2 {[%clk
0:03:08.6]} 8... b4 {[%clk 0:03:01.6]} 9. Nd1 {[%clk 0:03:09.6]} 9... h5 {[%clk
0:02:56.9]} 10. O-O {[%clk 0:03:03.1]} 10... h4 {[%clk 0:02:57.3]} 11. Bg5
{[%clk 0:03:01.5]} 11... hxg3 {[%clk 0:02:54.5]} 12. hxg3 {[%clk 0:03:00]} 12...
Nf6 {[%clk 0:02:53.3]} 13. Ne3 {[%clk 0:02:58.9]} 13... Nh7 {[%clk 0:02:45.6]}
14. Bh4 {[%clk 0:02:05]} 14... g5 {[%clk 0:02:41.8]} 15. Nf5 {[%clk 0:02:04.3]}
15... Bxf5 {[%clk 0:02:36.3]} 16. exf5 {[%clk 0:02:00.8]} 16... gxh4 {[%clk
0:02:14.4]} 17. Bxc6+ {[%clk 0:01:56.6]} 17... Kf8 {[%clk 0:02:15.5]} 18. Nf4
{[%clk 0:01:57.3]} 18... Nf6 {[%clk 0:01:58.2]} 19. Rae1 {[%clk 0:01:50.2]}
19... Bh6 {[%clk 0:01:56.3]} 20. Kg2 {[%clk 0:00:56]} 20... Nh5 {[%clk
0:01:29.2]} 21. Kf3 {[%clk 0:00:45]} 21... d5 {[%clk 0:01:14.5]} 22. Qe2 {[%clk
0:00:40.3]} 22... Bxf4 {[%clk 0:01:03.1]} 23. gxf4 {[%clk 0:00:38.2]} 23... Qd6
{[%clk 0:01:03.9]} 24. Qe5 {[%clk 0:00:38.5]} 24... Nf6 {[%clk 0:00:50.7]} 25.
Rh1 {[%clk 0:00:27.8]} 25... Rb6 {[%clk 0:00:40.8]} 26. Ba4 {[%clk 0:00:25.2]}
26... c4 {[%clk 0:00:34.4]} 27. d4 {[%clk 0:00:23.9]} 27... Ra6 {[%clk
0:00:31.9]} 28. b3 {[%clk 0:00:24.4]} 28... c3 {[%clk 0:00:31.1]} 29. Rh3 {[%clk
0:00:22.4]} 29... Rh5 {[%clk 0:00:21.1]} 30. Reh1 {[%clk 0:00:21]} 30... Qxe5
{[%clk 0:00:16.2]} 31. dxe5 {[%clk 0:00:21.9]} 31... Rxf5 {[%clk 0:00:17.3]} 32.
exf6 {[%clk 0:00:21.8]} 32... Raxf6 {[%clk 0:00:16.9]} 33. Rxh4 {[%clk
0:00:23.1]} 33... e5 {[%clk 0:00:18.1]} 34. Ke2 {[%clk 0:00:19.1]} 34... Rxf4
{[%clk 0:00:17]} 35. Rxf4 {[%clk 0:00:20.3]} 35... Rxf4 {[%clk 0:00:17.7]} 36.
Bc6 {[%clk 0:00:21.2]} 36... d4 {[%clk 0:00:18.4]} 37. Rh5 {[%clk 0:00:21.8]}
37... f6 {[%clk 0:00:18.8]} 38. Rh7 {[%clk 0:00:22.9]} 38... a5 {[%clk
0:00:15.9]} 39. Ra7 {[%clk 0:00:23.6]} 39... e4 {[%clk 0:00:16.5]} 40. Rxa5
{[%clk 0:00:23.1]} 40... f5 {[%clk 0:00:12.8]} 41. Bd7 {[%clk 0:00:22.3]} 41...
d3+ {[%clk 0:00:08.7]} 42. cxd3 {[%clk 0:00:23]} 42... c2 {[%clk 0:00:09.8]} 43.
Rc5 {[%clk 0:00:22.3]} 43... exd3+ {[%clk 0:00:10.1]} 44. Kxd3 {[%clk
0:00:23.3]} 44... Rxf2 {[%clk 0:00:08.6]} 45. Rxc2 {[%clk 0:00:23.6]} 45... Rf3+
{[%clk 0:00:08.8]} 46. Ke2 {[%clk 0:00:23.6]} 1-0